fUSD/lending_fUSD_20260118
["ID","MTS","AMOUNT","RATE_DAILY","PERIOD"]
[402559545,1768707065116,-531.08,0.00017534,2]
[402559546,1768707065127,-821.02,0.00017534,2]
[402559547,1768707065136,-500.0,0.00017534,2]
[402559548,1768707065147,-500.0,0.00017534,2]
[402559549,1768707065156,-995.49,0.00017534,2]
[402559550,1768707065166,-523.61,0.00017534,2]
[402559551,1768707065176,-500.0,0.00017534,2]
[402559552,1768707065187,-500.0,0.00017534,2]
[402559553,1768707065197,-382.93866645,0.00017534,2]
[402559554,1768707065206,-531.46,0.00017534,2]
[402559555,1768707065216,-500.4,0.00017534,2]
[402559556,1768707065226,-500.0,0.00017534,2]
[402559557,1768707065236,-500.0,0.00017534,2]
[402559559,1768707065246,-500.0,0.00017534,2]
[402559560,1768707065255,-500.0,0.00017534,2]
[402559561,1768707065265,-500.0,0.00017534,2]
[402559562,1768707065275,-500.0,0.00017534,2]
[402559563,1768707065284,-539.97,0.00017534,2]
[402559565,1768707065294,-500.68,0.00017534,2]
[402559566,1768707065304,-675.52,0.00017534,2]
[402559567,1768707065313,-516.22,0.00017534,2]
[402559568,1768707065323,-500.0,0.00017534,2]
[402559569,1768707065333,-500.0,0.00017534,2]
[402559570,1768707065343,-500.0,0.00017534,2]
[402559571,1768707065353,-500.0,0.00017534,2]
[402559572,1768707065362,-500.0,0.00017534,2]
[402559573,1768707065373,-500.0,0.00017534,2]
[402559574,1768707065383,-500.0,0.00017534,2]
[402559575,1768707065396,-500.0,0.00017534,2]
[402559576,1768707065407,-500.0,0.00017534,2]
[402559577,1768707065416,-500.0,0.00017534,2]
[402559578,1768707065426,-500.0,0.00017534,2]
[402559579,1768707065436,-525.19,0.00017534,2]
[402559581,1768707065447,-500.0,0.00017534,2]
[402559582,1768707065457,-500.0,0.00017534,2]
[402559583,1768707065469,-500.0,0.00017534,2]
[402559584,1768707065481,-500.0,0.00017534,2]
[402559585,1768707065491,-607.24,0.00017534,2]
[402559587,1768707065501,-500.0,0.00017534,2]
[402559588,1768707065511,-747.55,0.00017534,2]
[402559589,1768707065521,-803.83,0.00017534,2]
[402559590,1768707065531,-500.0,0.00017534,2]
[402559591,1768707065541,-518.76,0.00017534,2]
[402559597,1768707066025,-500.0,0.00017534,2]
[402559598,1768707066047,-500.0,0.00017534,2]
[402559599,1768707066057,-629.96,0.00017534,2]
[402559600,1768707066066,-500.0,0.00017534,2]
[402559601,1768707066076,-500.0,0.00017534,2]
[402559602,1768707066086,-500.0,0.00017534,2]
[402559603,1768707066096,-500.0,0.00017534,2]
[402559604,1768707066105,-500.0,0.00017534,2]
[402559605,1768707066115,-500.0,0.00017534,2]
[402559606,1768707066125,-500.0,0.00017534,2]
[402559607,1768707066134,-500.0,0.00017534,2]
[402559608,1768707066144,-500.0,0.00017534,2]
[402559609,1768707066153,-600.96,0.00017534,2]
[402559610,1768707066163,-757.38,0.00017534,2]
[402559611,1768707066172,-500.0,0.00017534,2]
[402559612,1768707066182,-500.0,0.00017534,2]
[402559614,1768707066192,-500.0,0.00017534,2]
[402559615,1768707066206,-500.0,0.00017534,2]
[402559616,1768707066217,-500.0,0.00017534,2]
[402559617,1768707066227,-500.0,0.00017534,2]
[402559618,1768707066240,-500.0,0.00017534,2]
[402559619,1768707066252,-157.20092009,0.00017534,2]
[402559620,1768707066263,-500.0,0.00017534,2]
[402559621,1768707066278,-500.0,0.00017534,2]
[402559622,1768707066289,-500.0,0.00017534,2]
[402559623,1768707066298,-500.0,0.00017534,2]
[402559624,1768707066308,-500.0,0.00017534,2]
[402559625,1768707066318,-500.0,0.00017534,2]
[402559626,1768707066329,-500.0,0.00017534,2]
[402559627,1768707066339,-500.0,0.00017534,2]
[402559628,1768707066349,-674.94,0.00017534,2]
[402559629,1768707066359,-500.0,0.00017534,2]
[402559630,1768707066368,-740.1,0.00017534,2]
[402559631,1768707066379,-781.94,0.00017534,2]
[402559632,1768707066389,-500.0,0.00017534,2]
[402559634,1768707066399,-500.0,0.00017534,2]
[402559635,1768707066412,-500.0,0.00017534,2]
[402559636,1768707066422,-500.0,0.00017534,2]
[402559637,1768707066432,-443.64675529,0.00017534,2]
[402559638,1768707066442,-500.0,0.00017534,2]
[402559640,1768707066451,-859.2,0.00017534,2]
[402559641,1768707066461,-500.0,0.00017534,2]
[402559642,1768707066475,-500.0,0.00017534,2]
[402559643,1768707066485,-500.0,0.00017534,2]
[402559644,1768707066495,-500.0,0.00017534,2]
[402559645,1768707066507,-500.0,0.00017534,2]
[402559646,1768707066517,-500.0,0.00017534,2]
[402559647,1768707066527,-500.0,0.00017534,2]
[402559648,1768707066538,-500.0,0.00017534,2]
[402559649,1768707066548,-500.0,0.00017534,2]
[402559650,1768707066558,-500.0,0.00017534,2]
[402559651,1768707066567,-500.0,0.00017534,2]
[402559652,1768707066577,-500.0,0.00017534,2]
[402559653,1768707066587,-500.0,0.00017534,2]
[402559654,1768707066597,-500.0,0.00017534,2]
[402559656,1768707066607,-500.0,0.00017534,2]
[402559657,1768707066616,-500.0,0.00017534,2]
[402559658,1768707066626,-500.0,0.00017534,2]
[402559659,1768707066635,-500.0,0.00017534,2]
[402559660,1768707066645,-500.0,0.00017534,2]
[402559662,1768707066655,-500.0,0.00017534,2]
[402559663,1768707066665,-500.0,0.00017534,2]
[402559664,1768707066675,-500.0,0.00017534,2]
[402559665,1768707066685,-500.0,0.00017534,2]
[402559666,1768707066695,-500.0,0.00017534,2]
[402559667,1768707066704,-595.30134832,0.00017534,2]
[402559668,1768707066714,-500.0,0.00017534,2]
[402559669,1768707066724,-500.0,0.00017534,2]
[402559670,1768707066734,-500.0,0.00017534,2]
[402559671,1768707066744,-500.0,0.00017534,2]
[402559672,1768707066754,-534.63,0.00017534,2]
[402559673,1768707066763,-500.0,0.00017534,2]
[402559674,1768707066774,-500.0,0.00017534,2]
[402559675,1768707066784,-500.0,0.00017534,2]
[402559676,1768707066802,-500.0,0.00017534,2]
[402559677,1768707066815,-500.0,0.00017534,2]
[402559678,1768707066825,-500.0,0.00017534,2]
[402559679,1768707066835,-500.0,0.00017534,2]
[402559680,1768707066846,-500.0,0.00017534,2]
[402559681,1768707066857,-500.0,0.00017534,2]
[402559683,1768707066870,-500.0,0.00017534,2]
[402559684,1768707066881,-456.59731,0.00017534,2]
[402559685,1768707066891,-500.0,0.00017534,2]
[402559686,1768707066901,-500.0,0.00017534,2]
[402559688,1768707066911,-642.62946395,0.00017534,2]
[402559689,1768707066922,-1088.04,0.00017534,2]
[402559690,1768707066932,-500.0,0.00017534,2]
[402559691,1768707066942,-500.0,0.00017534,2]
[402559692,1768707066952,-500.0,0.00017534,2]
[402559693,1768707066962,-500.0,0.00017534,2]
[402559694,1768707066972,-717.0,0.00017534,2]
[402559695,1768707066982,-500.0,0.00017534,2]
[402559696,1768707066992,-500.0,0.00017534,2]
[402559697,1768707067003,-500.0,0.00017534,2]
[402559698,1768707067013,-500.0,0.00017534,2]
[402559699,1768707067024,-500.0,0.00017534,2]
[402559700,1768707067034,-500.0,0.00017534,2]
[402559701,1768707067044,-559.02,0.00017534,2]
[402559702,1768707067054,-500.0,0.00017534,2]
[402559703,1768707067064,-500.0,0.00017534,2]
[402559704,1768707067075,-500.0,0.00017534,2]
[402559705,1768707067084,-500.0,0.00017534,2]
[402559707,1768707067094,-500.0,0.00017534,2]
[402559708,1768707067104,-500.0,0.00017534,2]
[402559709,1768707067113,-500.0,0.00017534,2]
[402559710,1768707067123,-500.0,0.00017534,2]
[402559711,1768707067134,-500.0,0.00017534,2]
[402559713,1768707067144,-500.0,0.00017534,2]
[402559714,1768707067155,-620.78,0.00017534,2]
[402559715,1768707067165,-608.39,0.00017534,2]
[402559716,1768707067175,-690.12,0.00017534,2]
[402559717,1768707067185,-500.0,0.00017534,2]
[402559718,1768707067196,-862.12,0.00017534,2]
[402559719,1768707067206,-500.0,0.00017534,2]
[402559720,1768707067216,-500.0,0.00017534,2]
[402559721,1768707067227,-742.35,0.00017534,2]
[402559722,1768707067237,-500.0,0.00017534,2]
[402559723,1768707067248,-1024.04,0.00017534,2]
[402559724,1768707067258,-500.0,0.00017534,2]
[402559725,1768707067270,-500.0,0.00017534,2]
[402559726,1768707067279,-500.0,0.00017534,2]
[402559727,1768707067289,-500.0,0.00017534,2]
[402559728,1768707067299,-500.0,0.00017534,2]
[402559729,1768707067308,-500.0,0.00017534,2]
[402559730,1768707067318,-500.0,0.00017534,2]
[402559732,1768707067329,-500.0,0.00017534,2]
[402559733,1768707067339,-500.0,0.00017534,2]
[402559734,1768707067349,-500.0,0.00017534,2]
[402559735,1768707067359,-577.15,0.00017534,2]
[402559736,1768707067370,-500.0,0.00017534,2]
[402559738,1768707067380,-500.0,0.00017534,2]
[402559739,1768707067390,-675.26,0.00017534,2]
[402559740,1768707067400,-500.0,0.00017534,2]
[402559741,1768707067409,-500.0,0.00017534,2]
[402559742,1768707067419,-500.0,0.00017534,2]
[402559743,1768707067430,-546.04,0.00017534,2]
[402559744,1768707067440,-500.0,0.00017534,2]
[402559745,1768707067450,-580.86,0.00017534,2]
[402559746,1768707067461,-500.0,0.00017534,2]
[402559748,1768707067473,-500.0,0.00017534,2]
[402559749,1768707067483,-500.0,0.00017534,2]
[402559750,1768707067493,-500.0,0.00017534,2]
[402559751,1768707067503,-824.68,0.00017534,2]
[402559752,1768707067515,-500.0,0.00017534,2]
[402559754,1768707067525,-500.0,0.00017534,2]
[402559755,1768707067536,-633.87,0.00017534,2]
[402559756,1768707067548,-500.0,0.00017534,2]
[402559757,1768707067558,-500.0,0.00017534,2]
[402559758,1768707067569,-500.0,0.00017534,2]
[402559759,1768707067579,-500.0,0.00017534,2]
[402559760,1768707067589,-500.0,0.00017534,2]
[402559762,1768707067599,-500.0,0.00017534,2]
[402559763,1768707067609,-543.77,0.00017534,2]
[402559764,1768707067619,-500.0,0.00017534,2]
[402559765,1768707067628,-500.0,0.00017534,2]
[402559766,1768707067639,-500.0,0.00017534,2]
[402559767,1768707067649,-500.0,0.00017534,2]
[402559768,1768707067659,-500.0,0.00017534,2]
[402559769,1768707067670,-500.0,0.00017534,2]
[402559770,1768707067681,-500.0,0.00017534,2]
[402559771,1768707067693,-500.0,0.00017534,2]
[402559772,1768707067705,-500.0,0.00017534,2]
[402559773,1768707067715,-500.0,0.00017534,2]
[402559774,1768707067725,-6349.27,0.00017534,2]
[402559775,1768707067737,-506.43,0.00017534,2]
[402559776,1768707067747,-500.0,0.00017534,2]
[402559777,1768707067758,-500.0,0.00017534,2]
[402559778,1768707067768,-500.0,0.00017534,2]
[402559779,1768707067778,-500.0,0.00017534,2]
[402559780,1768707067788,-500.0,0.00017534,2]
[402559781,1768707067798,-500.0,0.00017534,2]
[402559783,1768707067807,-500.0,0.00017534,2]
[402559784,1768707067817,-500.0,0.00017534,2]
[402559785,1768707067826,-734.48,0.00017534,2]
[402559786,1768707067836,-500.0,0.00017534,2]
[402559787,1768707067847,-500.0,0.00017534,2]
[402559788,1768707067858,-527.53,0.00017534,2]
[402559790,1768707067870,-500.0,0.00017534,2]
[402559791,1768707067880,-500.0,0.00017534,2]
[402559792,1768707067890,-551.67,0.00017534,2]
[402559793,1768707067901,-500.0,0.00017534,2]
[402559794,1768707067911,-738.28,0.00017534,2]
[402559795,1768707067921,-500.0,0.00017534,2]
[402559796,1768707067933,-500.0,0.00017534,2]
[402559797,1768707067942,-773.04,0.00017534,2]
[402559798,1768707067953,-500.0,0.00017534,2]
[402559799,1768707067963,-500.0,0.00017534,2]
[402559800,1768707067972,-500.0,0.00017534,2]
[402559801,1768707067984,-500.0,0.00017534,2]
[402559802,1768707067993,-500.0,0.00017534,2]
[402559803,1768707068002,-500.0,0.00017534,2]
[402559804,1768707068012,-500.0,0.00017534,2]
[402559805,1768707068021,-500.0,0.00017534,2]
[402559806,1768707068031,-517.71,0.00017534,2]
[402559807,1768707068041,-500.0,0.00017534,2]
[402559808,1768707068050,-334.27540544,0.00017534,2]
[402559809,1768707068060,-774.71,0.00017534,2]
[402559810,1768707068069,-500.0,0.00017534,2]
[402559811,1768707068079,-500.0,0.00017534,2]
[402559812,1768707068088,-500.0,0.00017534,2]
[402559813,1768707068097,-408.1228674,0.00017534,2]
[402559814,1768707068106,-672.35,0.00017534,2]
[402559815,1768707068115,-500.0,0.00017534,2]
[402559816,1768707068125,-150.0,0.00017534,2]
[402559817,1768707068135,-473.98108382,0.00017534,2]
[402559818,1768707068144,-500.0,0.00017534,2]
[402559819,1768707068153,-500.0,0.00017534,2]
[402559820,1768707068165,-150.0,0.00017534,2]
[402559821,1768707068174,-174.32870031,0.00017534,2]
[402559822,1768707068184,-500.0,0.00017534,2]
[402559823,1768707068193,-510.2071425,0.00017534,2]
[402559824,1768707068203,-500.0,0.00017534,2]
[402559825,1768707068214,-500.0,0.00017534,2]
[402559827,1768707068223,-500.0,0.00017534,2]
[402559828,1768707068233,-319.57706414,0.00017534,2]
[402559829,1768707068244,-500.0,0.00017534,2]
[402559830,1768707068254,-500.0,0.00017534,2]
[402559831,1768707068263,-500.0,0.00017534,2]
[402559832,1768707068273,-500.0,0.00017534,2]
[402559834,1768707068284,-500.0,0.00017534,2]
[402559835,1768707068294,-500.0,0.00017534,2]
[402559836,1768707068304,-500.0,0.00017534,2]
[402559837,1768707068314,-500.0,0.00017534,2]
[402559838,1768707068323,-637.29,0.00017534,2]
[402559839,1768707068334,-242.24156802,0.00017534,2]
[402559841,1768707068344,-500.0,0.00017534,2]
[402559842,1768707068353,-500.0,0.00017534,2]
[402559843,1768707068363,-725.21,0.00017534,2]
[402559844,1768707068373,-500.0,0.00017534,2]
[402559845,1768707068384,-519.56,0.00017534,2]
[402559847,1768707068394,-500.0,0.00017534,2]
[402559848,1768707068404,-500.0,0.00017534,2]
[402559849,1768707068414,-500.0,0.00017534,2]
[402559850,1768707068424,-500.0,0.00017534,2]
[402559851,1768707068434,-500.0,0.00017534,2]
[402559853,1768707068444,-500.0,0.00017534,2]
[402559854,1768707068453,-500.0,0.00017534,2]
[402559855,1768707068464,-500.0,0.00017534,2]
[402559856,1768707068478,-500.0,0.00017534,2]
[402559857,1768707068488,-500.0,0.00017534,2]
[402559858,1768707068498,-500.0,0.00017534,2]
[402559859,1768707068510,-500.0,0.00017534,2]
[402559860,1768707068521,-500.0,0.00017534,2]
[402559861,1768707068538,-533.95,0.00017534,2]
[402559863,1768707068549,-500.0,0.00017534,2]
[402559864,1768707068559,-500.0,0.00017534,2]
[402559865,1768707068569,-846.53,0.00017534,2]
[402559866,1768707068578,-600.21,0.00017534,2]
[402559867,1768707068589,-500.0,0.00017534,2]
[402559869,1768707068598,-378.10387805,0.00017534,2]
[402559870,1768707068608,-500.0,0.00017534,2]
[402559871,1768707068617,-594.34,0.00017534,2]
[402559872,1768707068631,-500.0,0.00017534,2]
[402559873,1768707068651,-500.0,0.00017534,2]
[402559874,1768707068662,-500.0,0.00017534,2]
[402559875,1768707068673,-500.0,0.00017534,2]
[402559876,1768707068685,-246.26735937,0.00017534,2]
[402559877,1768707068703,-500.0,0.00017534,2]
[402559878,1768707068714,-500.0,0.00017534,2]
[402559879,1768707068724,-500.0,0.00017534,2]
[402559880,1768707068734,-719.23,0.00017534,2]
[402559881,1768707068744,-541.54,0.00017534,2]
[402559882,1768707068753,-689.32,0.00017534,2]
[402559883,1768707068764,-500.0,0.00017534,2]
[402559885,1768707068774,-653.36,0.00017534,2]
[402559886,1768707068784,-500.0,0.00017534,2]
[402559887,1768707068795,-681.83,0.00017534,2]
[402559888,1768707068805,-1000.0,0.00017534,2]
[402559889,1768707068815,-357.65971709,0.0001754,2]
[402559890,1768707068826,-150.0,0.0001755,2]
[402559892,1768707068840,-150.0,0.00017551,2]
[402559893,1768707068850,-334.5472959,0.0001757,2]
[402559894,1768707068867,-4001.0,0.0001757,2]
[402559895,1768707068881,-187.6,0.00017571,2]
[402559896,1768707068891,-500.0,0.00017573,2]
[402559897,1768707068901,-500.0,0.00017573,2]
[402559898,1768707068912,-500.0,0.00017573,2]
[402559899,1768707068921,-500.0,0.00017573,2]
[402559900,1768707068931,-290.66579874,0.00017573,2]
[402559901,1768707068941,-500.0,0.00017573,2]
[402559902,1768707068951,-500.0,0.00017573,2]
[402559903,1768707068961,-500.0,0.00017573,2]
[402559904,1768707068970,-500.0,0.00017573,2]
[402559905,1768707068979,-171.34828518,0.00017573,2]
[402559906,1768707068989,-500.0,0.00017573,2]
[402559907,1768707068998,-500.0,0.00017573,2]
[402559908,1768707069007,-500.1639139,0.00017573,2]
[402559909,1768707069017,-500.0,0.00017573,2]
[402559911,1768707069027,-500.0,0.00017573,2]
[402559912,1768707069037,-500.0,0.00017573,2]
[402559913,1768707069047,-500.0,0.00017573,2]
[402559914,1768707069058,-197.69815775,0.00017573,2]
[402559915,1768707069068,-500.0,0.00017573,2]
[402559917,1768707069078,-500.0,0.00017573,2]
[402559918,1768707069088,-500.0,0.00017573,2]
[402559919,1768707069097,-500.0,0.00017573,2]
[402559920,1768707069108,-500.0,0.00017573,2]
[402559921,1768707069118,-500.0,0.00017573,2]
[402559922,1768707069129,-500.0,0.00017573,2]
[402559923,1768707069139,-582.53979654,0.00017573,2]
[402559924,1768707069149,-500.0,0.00017573,2]
[402559925,1768707069160,-500.0,0.00017573,2]
[402559926,1768707069171,-518.76167856,0.00017573,2]
[402559927,1768707069181,-500.0,0.00017573,2]
[402559928,1768707069190,-500.0,0.00017573,2]
[402559929,1768707069200,-556.48245376,0.00017573,2]
[402559930,1768707069210,-500.0,0.00017573,2]
[402559931,1768707069219,-500.0,0.00017573,2]
[402559932,1768707069229,-500.0,0.00017573,2]
[402559933,1768707069238,-500.0,0.00017573,2]
[402559934,1768707069248,-500.0,0.00017573,2]
[402559936,1768707069257,-500.0,0.00017573,2]
[402559937,1768707069267,-590.35304007,0.00017573,2]
[402559938,1768707069277,-183.77961437,0.00017573,2]
[402559939,1768707069286,-500.0,0.00017573,2]
[402559940,1768707069295,-500.0,0.00017573,2]
[402559941,1768707069304,-500.0,0.00017573,2]
[402559943,1768707069313,-500.0,0.00017573,2]
[402559944,1768707069323,-150.0,0.00017573,2]
[402559945,1768707069333,-150.0,0.00017573,2]
[402559946,1768707069342,-500.0,0.00017573,2]
[402559947,1768707069352,-500.0,0.00017573,2]
[402559948,1768707069361,-161.14043786,0.00017573,2]
[402559949,1768707069372,-596.05594459,0.00017573,2]
[402559950,1768707069381,-500.0,0.00017573,2]
[402559951,1768707069390,-181.23387532,0.00017573,2]
[402559952,1768707069400,-500.0,0.00017573,2]
[402559953,1768707069410,-500.0,0.00017573,2]
[402559954,1768707069419,-547.55135444,0.00017573,2]
[402559955,1768707069429,-500.0,0.00017573,2]
[402559956,1768707069438,-500.0,0.00017573,2]
[402559957,1768707069448,-500.86844017,0.00017573,2]
[402559958,1768707069458,-500.0,0.00017573,2]
[402559959,1768707069469,-500.0,0.00017573,2]
[402559961,1768707069480,-2428.19941568,0.00017584,2]
[402559962,1768707069490,-150.0,0.00017589,2]
[402559963,1768707069499,-490.3117775,0.00017589,2]
[402559964,1768707069508,-500.0,0.00017589,2]
[402559965,1768707069518,-200.0,0.000176,6]
[402559966,1768707069528,-466.61007112,0.00017613,2]
[402559967,1768707069538,-162.19899376,0.00017626,2]
[402559968,1768707069548,-12871.07621618,0.00017633,2]
[402559970,1768707069558,-9835.42840795,0.0001764,2]
[402559971,1768707069567,-207.24611606,0.00017644,2]
[402559972,1768707069577,-500.0,0.00017644,2]
[402559973,1768707069586,-1509.46447856,0.00017657,2]
[402559974,1768707069595,-150.0,0.00017666,2]
[402559975,1768707069605,-312.62560088,0.00017671,2]
[402559976,1768707069614,-187.6,0.00017678,2]
[402559977,1768707069623,-500.0,0.00017698,2]
[402559978,1768707069633,-200.0,0.000177,6]
[402559979,1768707069642,-384.6,0.00017709,2]
[402559980,1768707069652,-357.65971709,0.0001772,2]
[402559981,1768707069665,-600.0,0.00017726,7]
[402559982,1768707069678,-312.62560088,0.00017726,2]
[402559984,1768707069694,-500.0,0.00017753,2]
[402559985,1768707069708,-150.0,0.00017755,2]
[402559986,1768707069722,-150.0,0.00017766,2]
[402559988,1768707069734,-1000.0,0.00017768,2]
[402559989,1768707069748,-181.98921658,0.00017769,2]
[402559990,1768707069762,-553.82,0.0001778,2]
[402559991,1768707069774,-500.0,0.0001778,2]
[402559992,1768707069787,-991.33,0.0001778,2]
[402559994,1768707069800,-500.0,0.0001778,2]
[402559995,1768707069813,-563.16,0.0001778,2]
[402559996,1768707069827,-500.0,0.0001778,2]
[402559997,1768707069839,-500.0,0.0001778,2]
[402559998,1768707069852,-500.0,0.0001778,2]
[402559999,1768707069864,-500.0,0.0001778,2]
[402560000,1768707069875,-414.40457973,0.0001778,2]
[402560001,1768707069888,-500.0,0.0001778,2]
[402560002,1768707069900,-500.0,0.0001778,2]
[402560003,1768707069913,-500.0,0.0001778,2]
[402560004,1768707069926,-500.0,0.0001778,2]
[402560006,1768707069939,-500.0,0.0001778,2]
[402560007,1768707069952,-500.0,0.0001778,2]
[402560008,1768707069964,-500.0,0.0001778,2]
[402560009,1768707069977,-500.0,0.0001778,2]
[402560010,1768707069991,-500.0,0.0001778,2]
[402560011,1768707070006,-500.0,0.0001778,2]
[402560012,1768707070017,-187.6,0.00017785,2]
[402560014,1768707070032,-192.0,0.00017795,2]
[402560015,1768707070045,-200.0,0.000178,6]
[402560016,1768707070060,-500.0,0.00017807,2]
[402560017,1768707070072,-728.19,0.00017807,2]
[402560018,1768707070085,-500.0,0.00017807,2]
[402560019,1768707070099,-500.0,0.00017807,2]
[402560020,1768707070115,-500.0,0.00017807,2]
[402560021,1768707070127,-500.0,0.00017807,2]
[402560022,1768707070139,-500.0,0.00017807,2]
[402560023,1768707070151,-500.0,0.00017807,2]
[402560024,1768707070163,-500.0,0.00017807,2]
[402560025,1768707070174,-500.0,0.00017807,2]
[402560026,1768707070185,-576.37557313,0.00017808,2]
[402560028,1768707070195,-500.0,0.00017808,2]
[402560029,1768707070209,-500.0,0.00017808,2]
[402560030,1768707070223,-844.8658354,0.00017808,2]
[402560031,1768707070233,-500.0,0.00017808,2]
[402560032,1768707070243,-500.0,0.00017808,2]
[402560033,1768707070254,-301.43645124,0.00017808,2]
[402560034,1768707070264,-500.0,0.00017808,2]
[402560036,1768707070276,-500.0,0.00017808,2]
[402560037,1768707070289,-500.0,0.00017808,2]
[402560038,1768707070301,-500.0,0.00017808,2]
[402560039,1768707070312,-500.0,0.00017808,2]
[402560040,1768707070323,-500.0,0.00017808,2]
[402560041,1768707070333,-203.50214645,0.00017808,2]
[402560042,1768707070344,-500.0,0.00017808,2]
[402560043,1768707070355,-500.0,0.00017808,2]
[402560044,1768707070368,-500.0,0.00017808,2]
[402560045,1768707070378,-500.0,0.00017808,2]
[402560046,1768707070390,-500.0,0.00017808,2]
[402560047,1768707070401,-500.0,0.00017808,2]
[402560048,1768707070412,-500.0,0.00017808,2]
[402560050,1768707070424,-500.0,0.00017808,2]
[402560051,1768707070435,-500.0,0.00017808,2]
[402560052,1768707070446,-500.0,0.00017808,2]
[402560053,1768707070457,-500.0,0.00017808,2]
[402560054,1768707070471,-500.0,0.00017808,2]
[402560055,1768707070481,-500.0,0.00017808,2]
[402560057,1768707070492,-500.0,0.00017808,2]
[402560058,1768707070505,-504.07,0.00017808,2]
[402560059,1768707070517,-589.65,0.00017808,2]
[402560060,1768707070529,-500.0,0.00017808,2]
[402560061,1768707070542,-500.0,0.00017808,2]
[402560062,1768707070553,-500.0,0.00017808,2]
[402560063,1768707070564,-500.0,0.00017808,2]
[402560064,1768707070575,-738.21,0.00017808,2]
[402560065,1768707070587,-500.0,0.00017808,2]
[402560066,1768707070598,-531.08,0.00017808,2]
[402560067,1768707070609,-821.02,0.00017808,2]
[402560068,1768707070620,-500.0,0.00017808,2]
[402560069,1768707070632,-500.0,0.00017808,2]
[402560070,1768707070642,-995.49,0.00017808,2]
[402560071,1768707070653,-523.61,0.00017808,2]
[402560072,1768707070664,-500.0,0.00017808,2]
[402560074,1768707070675,-500.0,0.00017808,2]
[402560075,1768707070685,-531.46,0.00017808,2]
[402560076,1768707070696,-500.4,0.00017808,2]
[402560077,1768707070707,-500.0,0.00017808,2]
[402560078,1768707070718,-500.0,0.00017808,2]
[402560080,1768707070729,-500.0,0.00017808,2]
[402560081,1768707070740,-500.0,0.00017808,2]
[402560082,1768707070751,-484.22130877,0.00017808,2]
[402560083,1768707070762,-500.0,0.00017808,2]
[402560085,1768707070773,-539.97,0.00017808,2]
[402560086,1768707070784,-500.68,0.00017808,2]
[402560087,1768707070795,-675.52,0.00017808,2]
[402560088,1768707070807,-516.22,0.00017808,2]
[402560089,1768707070819,-500.0,0.00017808,2]
[402560090,1768707070829,-500.0,0.00017808,2]
[402560091,1768707070840,-500.0,0.00017808,2]
[402560092,1768707070852,-500.0,0.00017808,2]
[402560093,1768707070863,-500.0,0.00017808,2]
[402560094,1768707070875,-500.0,0.00017808,2]
[402560095,1768707070886,-500.0,0.00017808,2]
[402560096,1768707070897,-500.0,0.00017808,2]